Cogmind - Beta 16 @@@ ROGUE MODE // 2025.12.08 @ 13:07:06 Player: SilentMoose Result: Destroyed by as-34568 with Assembled Rifle Performance ------------- Evolutions (1) 500 Regions Visited (3) 600 Robots Destroyed (9) 45 Value Destroyed (141) 141 Prototype IDs (1) 20 Alien Tech Used (0) 0 Bonus (0) 0 TOTAL SCORE: 1306 Bonus ------- None Cogmind --------- Core Integrity 0/400 Matter 392/400 Energy 98/100 System Corruption 4% Temperature Cool (0) Movement Core (50) Location -9/Mines Parts ------- > --- POWER (1) -------- (None) > --- PROPULSION (4) --- (None) > --- UTILITY (2) ------ Medium Matter Pod Targeting Computer > --- WEAPON (2) ------- (None) > --- INVENTORY (5) ---- Medium Laser Light Assault Rifle Heavy Hammer Peak State ------------ > --- POWER ------------ Light Ion Engine > --- PROPULSION ------- Light Treads Light Treads Light Treads Compact Wheel > --- UTILITY ---------- Small Storage Unit Targeting Computer > --- WEAPON ----------- Heavy EM Pulse Gun Improved Medium Laser > --- INVENTORY -------- Improved Ion Engine Medium Laser Light Assault Rifle Heavy Hammer [Rating: 12] Favorites ----------- Power Light Ion Engine Engine Light Ion Engine Propulsion Compact Wheel Treads Light Treads Leg Aluminum Leg Wheel Compact Wheel Utility Small Storage Unit Storage Small Storage Unit Processor Targeting Computer Weapon Light Assault Rifle Energy Gun Improved Medium Laser Ballistic Gun Light Assault Rifle Special Weapon Mining Laser Build | -11 -10 -9 -9 ------- Run | Yrd Mat Mat Min Slots Evolved 2 | . . 2 . Power . | . . . . Propulsion 2 | . . 2 . Utility . | . . . . Weapon . | . . . . Parts Attached 21 | 7 3 5 6 Power 4 | 2 . 1 1 Engine 4 | 2 . 1 1 Core . | . . . . Reactor . | . . . . Propulsion 7 | 2 2 . 3 Treads 3 | . . . 3 Leg 2 | 2 . . . Wheel 2 | . 2 . . Hover . | . . . . Flight . | . . . . Utility 3 | 1 1 . 1 Device . | . . . . Storage 2 | 1 . . 1 Processor 1 | . 1 . . Hackware . | . . . . Protection . | . . . . Artifact . | . . . . Weapon 7 | 2 . 4 1 Energy Gun 4 | 1 . 3 . Energy Cannon . | . . . . Ballistic Gun 2 | 1 . 1 . Ballistic Cannon . | . . . . Launcher . | . . . . Special Weapon 1 | . . . 1 Impact Weapon . | . . . . Slashing Weapon . | . . . . Piercing Weapon . | . . . . Special Melee Weapon . | . . . . Unidentified Prototypes 1 | . . 1 . Parts Lost 18 | . 6 . 12 Power 4 | . 2 . 2 Propulsion 7 | . 2 . 5 Utility 1 | . . . 1 Weapon 6 | . 2 . 4 Highest Loss Streak 9 | . 6 . 9 To Critical Strikes 1 | . 1 . . Average Backups 4 | 3 7 4 4 Power . | . 1 . . Propulsion 2 | 2 3 2 . Utility . | . . . . Weapon 2 | . 1 1 2 Tool/Special . | . . . . Unused Backups 2 | . . . 2 Power . | . . . . Propulsion . | . . . . Utility . | . . . . Weapon 2 | . . . 2 Tool/Special . | . . . . Average Slot Usage (%) 83 | . 89 75 81 Engine 10 | . 14 11 9 Treads 10 | . . . 18 Leg 7 | . 23 . . Wheel 11 | . 2 22 13 Storage 11 | . 14 11 9 Processor 10 | . 8 11 11 Energy Gun 14 | . 12 15 15 Ballistic Gun 7 | . 12 5 4 Peak Build Rating 12 | 6 7 10 12 Average Rating 8 | 5 6 8 9 On Entrance 5 | . 6 4 10 Avg Prop Armor Cover (%) 3 | . 8 . 3 Naked Turns . | . . . . Heaviest Build 16 | 13 13 14 16 Greatest Support 60 | 20 32 32 60 Greatest Overweight (x) 2 | 1 2 . . Average Overweight (x) . | . . . . Largest Inventory Capacity 8 | 8 8 8 8 Average Capacity 7 | 7 8 8 7 Most Carried 8 | 6 8 7 7 Average Carried 4 | 4 7 4 4 Final Capacity 8 | 8 8 8 5 Final Carried 7 | 6 5 7 3 Class Distribution -------------------- 100% | Mutant Dominant Class ---------------- Mutant | -10/Materials Mutant | -9/Materials Mutant | -9/Mines Resources | -11 -10 -9 -9 ----------- Run | Yrd Mat Mat Min Matter Collected 350 | 260 11 . 79 Remotely . | . . . . Salvage Created 171 | . 11 55 105 Parts 12 | . 2 5 5 Haulers Intercepted . | . . . . Recyclers Shooed 1 | . . . 1 Parts Field Recycled . | . . . . Retrieved Matter . | . . . . Parts Self-Destructed . | . . . . Prevented . | . . . . Parts Restored . | . . . . Kills | -11 -10 -9 -9 ------- Run | Yrd Mat Mat Min Combat Hostiles Destroyed 8 | . . 1 7 Guns 5 | . . 1 4 AOE 3 | . . . 3 Classes Destroyed 3 | . 1 1 1 Watcher 1 | . 1 . . Swarmer 7 | . . . 7 Sentry 1 | . . 1 . Best Kill Streak 3 | . 1 1 3 Combat Bots Only 3 | . . 1 3 Max Kills in Single Turn 3 | . 1 1 3 Gunslinging . | . . . . Exploded 3 | . . . 3 Melee . | . . . . Uniques/NPCs Destroyed . | . . . . Combat | -11 -10 -9 -9 -------- Run | Yrd Mat Mat Min Hostile Shots Fired 293 | . 144 8 141 Missed 99 | . 54 3 42 Hits 194 | . 90 5 99 Melee 4 | . . . 4 Projectile 190 | . 90 5 95 Critical Strikes 4 | . 1 1 2 Part Disruptions 2 | . . . 2 Damage Taken 2076 | . 785 74 1217 Core 615 | . 208 17 390 Absorbed by Shields . | . . . . Core Remaining (%) 58 | 100 16 . . Volleys Fired 20 | . 2 3 15 Largest 2 | . 2 2 2 Hottest 101 | . 70 101 101 Shots Fired 39 | . 4 6 29 Gun 39 | . 4 6 29 Cannon . | . . . . Launcher . | . . . . Special . | . . . . Kinetic 13 | . 2 . 11 Thermal 19 | . 2 3 14 Explosive . | . . . . Electromagnetic 7 | . . 3 4 Robot Hit Streak 3 | . 2 2 3 Robot Miss Streak 7 | . 1 3 7 Penetration Max . | . . . . Secondary Targets 1 | . . . 1 Max Gunslinging Chain 1 | . . . 1 Shots Hit Robots 16 | . 2 2 12 Core Hits 9 | . 1 2 6 Critical Kills . | . . . . Critical Parts Destroyed . | . . . . Critical Strikes 1 | . . . 1 Burn 1 | . . . 1 Melee Attacks . | . . . . Impact . | . . . . Slashing . | . . . . Piercing . | . . . . Sneak Attacks . | . . . . Combat Hostiles . | . . . . Follow-up Attacks . | . . . . Damage Inflicted 346 | . 19 29 298 Guns 210 | . 19 29 162 Cannons . | . . . . Explosions 129 | . . . 129 Melee . | . . . . Ramming 7 | . . . 7 Kinetic 31 | . 6 . 25 Thermal 242 | . 13 17 212 Explosive . | . . . . Electromagnetic 66 | . . 12 54 Impact . | . . . . Slashing . | . . . . Piercing . | . . . . Highest Corruption 4 | . . . 4 Average Corruption 4 | . . . 4 Corruption Purged . | . . . . Corruption Blocked . | . . . . Effects 2 | . . . 2 Matter Fused 2 | . . . 2 Overload Shots . | . . . . Overflow Damage 64 | . . . 64 Projectiles . | . . . . Explosions 64 | . . . 64 Melee . | . . . . Knockbacks . | . . . . Impact . | . . . . Kinetic . | . . . . Secondary . | . . . . Self-Inflicted Damage 71 | . . . 71 Shots 2 | . . . 2 Rammed 3 | . . . 3 Targets Rammed 3 | . . . 3 Kicked . | . . . . Crushed . | . . . . Highest Temperature 112 | . 40 112 93 Average Temperature 46 | . 20 57 47 Received Heat Transfer 373 | . 108 45 220 Siege Activations . | . . . . Martial Activations . | . . . . Shielding Activations . | . . . . Robots Disrupted . | . . . . Combat Hostiles . | . . . . Robots Corrupted . | . . . . Combat Hostiles . | . . . . Parts Fried . | . . . . Impact Corruptions . | . . . . Robots Melted . | . . . . Combat Hostiles . | . . . . Parts Melted . | . . . . Heat Transferred 433 | . 37 37 359 Parts Sabotaged . | . . . . Parts Stolen . | . . . . Parts Stripped . | . . . . Power Chain Reactions 1 | . . . 1 Alert | -11 -10 -9 -9 ------- Run | Yrd Mat Mat Min Maximum Alert Level . | . . . . Low Security (%) 100 | 100 100 100 100 Level 1 . | . . . . Level 2 . | . . . . Level 3 . | . . . . Level 4 . | . . . . Level 5 . | . . . . High Security . | . . . . Max Security . | . . . . Peak Influence 81 | . 7 30 81 Initial 3 | . . . 3 Average 14 | . . 7 26 Influence Increases 233 | . 12 30 191 Destroy 0b10 Robot/C 160 | . . 20 140 Destroy 0b10 Robot/NC 5 | . 5 . . Destroy Leader 22 | . 2 10 10 Successful Hack 5 | . 5 . . Disable Machine 15 | . . . 15 Destroy Structure 11 | . . . 11 Lose Combat Pursuer 15 | . . . 15 Influence Decreases 233 | . 12 20 201 Entered New Map 7 | . . . 7 Time Decay 173 | . 12 20 141 Lost Part 53 | . . . 53 Squads Dispatched 3 | . 1 2 . Investigation 1 | . . 1 . Extermination . | . . . . Reinforcement 2 | . 1 1 . Assault . | . . . . Garrison . | . . . . Intercept . | . . . . Searches Triggered . | . . . . Construction Impeded . | . . . . Haulers Reinforced . | . . . . Active Scanning Responses . | . . . . Cargo Convoy Interrupts . | . . . . Stealth | -11 -10 -9 -9 --------- Run | Yrd Mat Mat Min Distress Signals 2 | . 1 . 1 Communications Jammed . | . . . . Distress Signals . | . . . . Times Spotted 30 | . 11 2 17 Peak Tracking Total 8 | . 8 1 7 Tactical Retreats 2 | . . . 2 Traps | -11 -10 -9 -9 ------- Run | Yrd Mat Mat Min Traps Triggered 1 | . . 1 . Indirectly . | . . . . Trap Hack Attempts . | . . . . Triggered . | . . . . Disarmed . | . . . . Reprogrammed . | . . . . Reused . | . . . . Traps Extracted . | . . . . Installed . | . . . . Triggered . | . . . . Machines | -11 -10 -9 -9 ---------- Run | Yrd Mat Mat Min Machines Disabled 1 | . . . 1 Max in Single Turn 1 | . . . 1 Machines Repaired . | . . . . Machines Dismantled . | . . . . Machines Sabotaged . | . . . . Overloaded Fab Kills . | . . . . Hacking | -11 -10 -9 -9 --------- Run | Yrd Mat Mat Min Machines Accessed 1 | . 1 . . Terminals 1 | . 1 . . Fabricators . | . . . . Repair Stations . | . . . . Recycling Units . | . . . . Scanalyzers . | . . . . Garrison Access . | . . . . Total Hacks 1 | . 1 . . Successful 1 | . 1 . . Failed . | . . . . Catastrophic . | . . . . Database Lockouts . | . . . . Manual . | . . . . Terminals 1 | . 1 . . Fabricators . | . . . . Repair Stations . | . . . . Recycling Units . | . . . . Scanalyzers . | . . . . Garrison Access . | . . . . Terminal Hacks 1 | . 1 . . Zone Layout 1 | . 1 . . Fabricator Hacks . | . . . . Repair Station Hacks . | . . . . Recycling Unit Hacks . | . . . . Scanalyzer . | . . . . Garrison Access Hacks . | . . . . Unauthorized Hacks . | . . . . Terminals . | . . . . Fabricators . | . . . . Repair Stations . | . . . . Recycling Units . | . . . . Scanalyzers . | . . . . Garrison Access . | . . . . Data Cores Recovered . | . . . . Used . | . . . . Hacking Detections . | . . . . Full Trace Events . | . . . . Feedback Events . | . . . . Feedback Blocked . | . . . . Robot Schematics Acquired . | . . . . Robots Built . | . . . . Authchips . | . . . . Time . | . . . . Total Robot Build Rating . | . . . . Part Schematics Acquired . | . . . . Parts Built . | . . . . Authchips . | . . . . Time . | . . . . Total Part Build Rating . | . . . . Part Studies Acquired . | . . . . Parts Repaired . | . . . . Time . | . . . . Parts Recycled . | . . . . Recycled Matter . | . . . . Retrieved Matter . | . . . . Retrieved Components . | . . . . Parts Scanalyzed . | . . . . Part Schematics Acquired . | . . . . Parts Damaged . | . . . . Bothacking | -11 -10 -9 -9 ------------ Run | Yrd Mat Mat Min Used RIF Installer . | . . . . Robots Hacked . | . . . . Non-combat . | . . . . Combat . | . . . . Robot Hacks Applied . | . . . . Relay Couplers Released . | . . . . Fabnet Peak Effective % . | . . . . Robots Rewired . | . . . . Allies Hacked . | . . . . Hacks Repelled . | . . . . Allies | -11 -10 -9 -9 -------- Run | Yrd Mat Mat Min Total Allies 1 | . . . 1 Largest Group 1 | . . . 1 Highest-Rated Group 31 | . . . 31 Highest-Rated Ally 31 | . . . 31 Total Orders . | . . . . Ally Attacks 8 | . . . 8 Total Damage 105 | . . . 105 Kills 4 | . . . 4 Allies Corrupted . | . . . . Allies Melted . | . . . . Intel | -11 -10 -9 -9 ------- Run | Yrd Mat Mat Min Active Infowar (turns) . | . . . . Robot Analysis Total . | . . . . Derelict Logs Recovered 1 | . . . 1 Drone Launches . | . . . . Drone Recoveries . | . . . . Exploration | -11 -10 -9 -9 ------------- Run | Yrd Mat Mat Min Turns Passed 973 | 107 261 121 484 Spaces Moved 747 | 74 200 102 371 Core 77 | 4 5 . 68 Treads 151 | . . . 151 Legs 249 | 70 179 . . Wheels 270 | . 16 102 152 Hover . | . . . . Flight . | . . . . Fastest Speed 50 | 50 100 100 50 Average Speed 116 | 122 124 100 115 Slowest Speed 190 | 190 190 100 160 Overloaded Moves . | . . . . Propulsion Burnouts . | . . . . Robots Hopped . | . . . . Potential Cave-ins . | . . . . Cave-ins Triggered . | . . . . Exploration Rate (%) 35 | 5 50 12 75 Regions Visited 3 Branch Regions 1 Pre-discovered Areas . | . . . . Known Exits Taken . | . . . . Unknown Exits Taken 3 | 1 1 1 . Scrap Searched . | . . . . Spaces Dug . | . . . . Terrain Destroyed 14 | . . . 14 Melee . | . . . . Projectile . | . . . . AOE 14 | . . . 14 Terrain Rammed . | . . . . Walls Destroyed . | . . . . Machines Disabled . | . . . . Actions | -11 -10 -9 -9 --------- Run | Yrd Mat Mat Min Total 807 | 87 207 114 399 Wait 3 | 1 . . 2 Move 744 | 73 199 101 371 Hop . | . . . . Pick Up 14 | 6 2 5 1 Fast Attach 8 | 5 1 . 2 Attach 12 | 1 3 3 5 Detach . | . . . . Swap 3 | 1 . 2 . Drop . | . . . . Fire 20 | . 2 3 15 Melee . | . . . . Ram 2 | . . . 2 Kick . | . . . . Crush 1 | . . . 1 Escape Stasis . | . . . . Rewire . | . . . . Trap . | . . . . Miscellaneous . | . . . . Route ------- -11/Scrapyard -10/Materials -9/Materials -9/Mines History --------- Turn | Location | Event 32 | -11/Scrapyard | Discovered new exit (range 15) 108 | -11/Scrapyard | Entered Materials 310 | -10/Materials | Build established: Mutant 331 | -10/Materials | Core integrity fell below 50% 354 | -10/Materials | Discovered new exit (range 16) 369 | -10/Materials | Entered another Materials area 369 | -9/Materials | Evolved 2 slots: Propulsion x2 396 | -9/Materials | Lost 6 parts (2p2n2w) 479 | -9/Materials | Discovered new exit (range 11) 490 | -9/Materials | Entered Mines 492 | -9/Mines | Learned 2 Materials zone layouts 839 | -9/Mines | Assembled infested the area 845 | -9/Mines | Found a hidden stash of uninstalled traps 881 | -9/Mines | Core integrity fell below 50% 909 | -9/Mines | Received a Mining Laser from a helpful Derelict 952 | -9/Mines | Core integrity fell below 20% 974 | -9/Mines | Destroyed by as-34568 with Assembled Rifle Last Messages --------------- 00912_ R6-KYT(g): "You're apparently new around these parts, I'll cover you." 00912_ as-83511 destroyed. 00913_ Acquired Mining Laser. 00914_ as-45530 destroyed. 00915_ R6-KYT(g): "Mining lasers are a lot more useful than you might think..." 00920_ as-11763 destroyed. 00924_ as-93843 destroyed. 00926_ Acquired 5 matter. 00927_ Slammed into as-04556. 00927_ R6-KYT(g) destroyed. 00928_ Slammed into as-34568. 00929_ Acquired 19 matter. 00931_ Mining Laser destroyed. 00934_ Acquired 12 matter. 00936_ Acquired Med. Matter Pod. 00938_ Com. Wheel destroyed. 00949_ System corrupted: Matter fused (-7). 00949_ Lgt. Assault Rifle destroyed. Map ----- +----------------------------------------------------+ | ????????????????????#### #????????? | | ####???????????????????# #????????? | | #####???????????##### #????????? | | % #???????????# #????????? | | ## #???????????# #????????? | | ## #???#???????# ####????????? | | # ### #???????# #???????????? | | ####????# #???????????? | | #????# #???????????? | | ###### #????# #???????????? | | ##????# #????# #???????????? | | #### #?????# #????# #???????????? | | ##??# #?????# #????# #???????????? | | ????# #??#### #????# #???????????? | | ????# #?## ###### #####???????? | | ????# ### ## ##??????? | | ????# ## #??????? | | ##### ########## ##?????? | | ##### ####????????# #####?? | | #???####???????????# #?? | | ## #?????####????????## #?? | | ?# #????## ##??????## ## #??? | | ?# #?#### ##????## ##?###??? | | ## ### ###### #???????? | | % ## #???????? | | ## @#???????? | | ##### ##??????? | | # ##???## ###????? | | ## ## ##?????## ##???? | | ?###### #??????##%* #???? | | ????### #??????# ! #???? | | ???## % ##?????# ### #???? | | ??## ##????# #?#### ##???? | | ??# % #????# #????## ##????? | | ?## !%! #????# #?????# #?????? | | ## = ##????# #?????# ####??? | | ####?????# #?????#a ##?? | | ####???????## ##???## a #?? | | ##??????????# ##?## a #?? | | ####???????????# ### #?? | | ???????????????## #?? | | ????????????????## ##?? | | ?????????????????######## ###??? | | ????????????????????????######????? | | ??????????????????????????????????? | | | | | | | | | | | +----------------------------------------------------+ Best States ------------- Heat Dissipation 28 Energy Generation 12 Energy Capacity 265 Matter Stores 395 Matter Capacity 400 Sight Range 16 Terrain Scan Density 10 Evasion (%) 55 Targeting Accuracy 5 Recoil Reduction 3 Item Schematics ----------------- None Robot Schematics ------------------ None Fabricated ------------ Nothing Repaired ---------- Nothing Studied --------- None Alien Tech Used ----------------- None Achievements -------------- For Emergencies Only Physics Hates This One Trick Challenges ------------ None Game ------ Seed SwordTiamatReplicator Manual? 0 Play Time 00:12:48 Cumulative 4.7 hours Start 2025.12.08 @ 12:55:11 End 2025.12.08 @ 13:07:06 Sessions 1 Manual Loads 0 Difficulty Rogue Special Mode None Game No. 17 Rogue 17 Adventurer 0 Explorer 0 Win Type - Total 0 Types 0/0/0/0/0/0/0/0/0/0 Lore% 4 Gallery% 8 Achievement% 6 Wizard Run 0 Options --------- Layout 1 ASCII 0 Keyboard 1 Movement Vi Keybinds 0 Fullscreen 1 Font 24/Smallcaps Map View 50x35 Zoom Use 0% Tactical HUD 1 Map Filters NONE Filters NONE Steam 1 RUN: f0d17cba-da90-4d69-aeeb-fcaaa70715e1